[Event "DVM U10 2024"]
[Site "Duesseldorf"]
[Date "2024.12.29"]
[Round "7"]
[White "Breaz, Arthur"]
[Black "Golnik, Rasmus"]
[Result "1-0"]
[ECO "C47"]
[WhiteElo "1123"]
[BlackElo "1087"]
[Annotator "NA"]
[PlyCount "231"]
[EventDate "2024.12.23"]
[EventType "team-tourn"]
[EventRounds "7"]
[EventCountry "GER"]
[SourceTitle "playchess.com"]
[Source "ChessBase"]
[SourceQuality "1"]
[TimeControl "3300+5"]

1. e4 {[%emt 0:00:04]} e5 {[%emt 0:00:04]} 2. Nf3 {[%emt 0:00:05]} Nf6 {[%emt 0:00:06]} 3. Nc3 {[%emt 0:00:19]} Nc6 {[%emt 0:00:08]} 4. d4 {[%emt 0:00:25]} exd4 {[%emt 0:00:26]} 5. Nxd4 {[%emt 0:00:07]} Bb4 {[%emt 0:00:19]} 6. Nxc6 {[%emt 0:00:05]} bxc6 {[%emt 0:00:16]} 7. Bd3 {[%emt 0:00:44]} d6 {[%emt 0:01:11]} 8. Bg5 {[%emt 0:00:42]} O-O {[%emt 0:01:02]} 9. O-O {[%emt 0:00:20]} Re8 {[%emt 0:00:49]} 10. Ne2 {[%emt 0:00:21]} h6 {[%emt 0:01:26]} 11. Bh4 {[%emt 0:01:59]} Rb8 {[%emt 0:00:32]} 12. b3 {[%emt 0:00:26]} d5 {[%emt 0:01:15]} 13. exd5 {[%emt 0:01:08]} cxd5 {[%emt 0:00:15]} 14. Nf4 {[%emt 0:01:53]} Qd6 {[%emt 0:03:22]} 15. Bg3 {[%emt 0:02:19]} Qd8 {[%emt 0:01:18]} 16. Qc1 {[%emt 0:01:53]} Bb7 {[%emt 0:03:54]} 17. c3 {[%emt 0:00:21]} Bd6 {[%emt 0:01:07]} 18. Qd2 {[%emt 0:00:23]} Bc6 {[%emt 0:03:43]} 19. Rfe1 {[%emt 0:00:32]} Qd7 {[%emt 0:01:38]} 20. Rad1 {[%emt 0:03:16]} a5 {[%emt 0:01:29]} 21. Bc2 {[%emt 0:00:59]} Rbd8 {[%emt 0:01:57]} 22. Re2 {[%emt 0:08:50]} Bb7 {[%emt 0:07:05]} 23. Rde1 {[%emt 0:00:39]} c5 {[%emt 0:01:38]} 24. c4 {[%emt 0:00:42]} Rxe2 {[%emt 0:02:22]} 25. Nxe2 {[%emt 0:00:32]} Bxg3 {[%emt 0:00:33]} 26. Nxg3 {[%emt 0:00:10]} dxc4 {[%emt 0:00:34]} 27. Qxd7 {[%emt 0:00:29]} Rxd7 {[%emt 0:00:21]} 28. bxc4 {[%emt 0:00:13]} Rd2 {[%emt 0:02:30]} 29. Bb1 {[%emt 0:01:23]} Ba6 {[%emt 0:00:57]} 30. Rc1 {[%emt 0:00:59]} g6 {[%emt 0:02:43]} 31. Nf1 {[%emt 0:01:16]} Rd4 {[%emt 0:00:45]} 32. Ne3 {[%emt 0:00:13]} Ne4 {[%emt 0:01:39]} 33. a4 {[%emt 0:00:47]} Nd6 {[%emt 0:01:17]} 34. Ba2 {[%emt 0:00:06]} Kg7 {[%emt 0:01:08]} 35. Bb3 {[%emt 0:00:44]} Rd3 {[%emt 0:01:03]} 36. Bd1 {[%emt 0:00:58]} Nxc4 {[%emt 0:01:19]} 37. Be2 {[%emt 0:00:20]} Ra3 {[%emt 0:01:37]} 38. Bxc4 {[%emt 0:01:08]} Bxc4 {[%emt 0:00:23]} 39. Nxc4 {[%emt 0:00:05]} Rxa4 {[%emt 0:00:13]} 40. Nb6 {[%emt 0:00:16]} Rb4 {[%emt 0:00:07]} 41. Nd5 {[%emt 0:00:41]} Rd4 {[%emt 0:00:14]} 42. Ne3 {[%emt 0:00:17]} a4 {[%emt 0:00:06]} 43. Rxc5 {[%emt 0:00:43]} a3 {[%emt 0:00:07]} 44. Ra5 {[%emt 0:00:04]} Rd3 {[%emt 0:00:27]} 45. Kf1 {[%emt 0:00:01]} h5 {[%emt 0:00:09]} 46. Ke2 {[%emt 0:00:14]} Rb3 {[%emt 0:00:06]} 47. Kd1 {[%emt 0:00:23]} Rb2 {[%emt 0:00:22]} 48. Rxa3 {[%emt 0:00:16]} Rxf2 {[%emt 0:00:04]} 49. Ke1 {[%emt 0:00:28]} Rb2 {[%emt 0:00:05]} 50. Ra6 {[%emt 0:00:30]} Rb5 {[%emt 0:00:11]} 51. Kd2 {[%emt 0:00:20]} Rb2+ {[%emt 0:00:02]} 52. Kc3 {[%emt 0:00:14]} Rb5 {[%emt 0:00:06]} 53. Kc4 {[%emt 0:00:39]} Re5 {[%emt 0:00:09]} 54. Kd4 {[%emt 0:00:24]} Re8 {[%emt 0:00:08]} 55. Kd3 {[%emt 0:00:37]} Rd8+ {[%emt 0:00:03]} 56. Ke4 {[%emt 0:00:16]} Re8+ {[%emt 0:00:02]} 57. Kf4 {[%emt 0:00:22]} Rc8 {[%emt 0:00:12]} 58. Ra5 {[%emt 0:00:17]} Re8 {[%emt 0:00:05]} 59. Rg5 {[%emt 0:00:09]} Kh7 {[%emt 0:00:06]} 60. Nd5 {[%emt 0:00:11]} Re6 {[%emt 0:00:28]} 61. Rg3 {[%emt 0:00:43]} Kg7 {[%emt 0:00:09]} 62. Ne3 {[%emt 0:00:18]} Rf6+ {[%emt 0:00:11]} 63. Ke4 {[%emt 0:00:11]} Re6+ {[%emt 0:00:04]} 64. Kd4 {[%emt 0:00:14]} Rd6+ {[%emt 0:00:04]} 65. Kc5 {[%emt 0:00:06]} Re6 {[%emt 0:00:05]} 66. Nf5+ {[%emt 0:00:10]} Kg8 {[%emt 0:00:07]} 67. Kd5 {[%emt 0:00:31]} Kf8 {[%emt 0:00:16]} 68. Nd6 {[%emt 0:00:19]} Ke7 {[%emt 0:00:26]} 69. Nc4 {[%emt 0:00:24]} Rf6 {[%emt 0:00:17]} 70. Re3+ {[%emt 0:00:14]} Kd7 {[%emt 0:00:26]} 71. Ne5+ {[%emt 0:00:20]} Kd8 {[%emt 0:00:04]} 72. Nc6+ {[%emt 0:00:13]} Kd7 {[%emt 0:00:01]} 73. Re7+ {[%emt 0:00:25]} Kc8 {[%emt 0:00:05]} 74. Ne5 {[%emt 0:00:30]} Ra6 {[%emt 0:00:16]} 75. Rxf7 {[%emt 0:00:55]} Kb8 {[%emt 0:00:06]} 76. Nc6+ {[%emt 0:00:20]} Kc8 {[%emt 0:00:03]} 77. Kc5 {[%emt 0:00:30]} h4 {[%emt 0:00:07]} 78. Kb5 {[%emt 0:00:05]} Ra2 {[%emt 0:00:05]} 79. Na5 {[%emt 0:00:14]} Rb2+ {[%emt 0:00:07]} 80. Kc5 {[%emt 0:00:11]} Rc2+ {[%emt 0:00:02]} 81. Nc4 {[%emt 0:00:12]} g5 {[%emt 0:00:06]} 82. Kd5 {[%emt 0:00:30]} g4 {[%emt 0:00:07]} 83. Ne3 {[%emt 0:00:24]} Rd2+ {[%emt 0:00:03]} 84. Ke6 {[%emt 0:00:27]} Re2 {[%emt 0:00:09]} 85. Rf8+ {[%emt 0:00:37]} Kc7 {[%emt 0:00:02]} 86. Rf7+ {[%emt 0:00:09]} Kc6 {[%emt 0:00:04]} 87. Kf5 {[%emt 0:00:41]} Rxe3 {[%emt 0:00:02]} 88. Kxg4 {[%emt 0:00:15]} Re2 {[%emt 0:00:07]} 89. Kf3 {[%emt 0:00:29]} Re5 {[%emt 0:00:04]} 90. g4 {[%emt 0:00:43]} hxg3 {[%emt 0:00:31]} 91. hxg3 {[%emt 0:00:07]} Rg5 {[%emt 0:00:03]} 92. Kf4 {[%emt 0:00:14]} Rg6 {[%emt 0:00:08]} 93. g4 {[%emt 0:00:07]} Kd6 {[%emt 0:00:10]} 94. Kf5 {[%emt 0:00:10]} Rg8 {[%emt 0:00:08]} 95. g5 {[%emt 0:00:17]} Kd5 {[%emt 0:00:06]} 96. g6 {[%emt 0:00:39]} Kd6 {[%emt 0:00:05]} 97. g7 {[%emt 0:00:38]} Kd5 {[%emt 0:00:06]} 98. Kf6 {[%emt 0:00:16]} Kd6 {[%emt 0:00:07]} 99. Rf8 {[%emt 0:00:05]} Rxf8+ {[%emt 0:00:04]} 100. gxf8=Q+ {[%emt 0:00:10]} Kd5 {[%emt 0:00:02]} 101. Qe8 {[%emt 0:00:18]} Kd4 {[%emt 0:00:01]} 102. Kf5 {[%emt 0:00:09]} Kd3 {[%emt 0:00:02]} 103. Kf4 {[%emt 0:00:09]} Kd4 {[%emt 0:00:02]} 104. Qd8+ {[%emt 0:00:10]} Kc5 {[%emt 0:00:01]} 105. Ke5 {[%emt 0:00:11]} Kc4 {[%emt 0:00:00]} 106. Ke4 {[%emt 0:00:10]} Kc5 {[%emt 0:00:01]} 107. Qd1 {[%emt 0:00:14]} Kc6 {[%emt 0:00:02]} 108. Ke5 {[%emt 0:00:09]} Kc7 {[%emt 0:00:00]} 109. Ke6 {[%emt 0:00:11]} Kc6 {[%emt 0:00:01]} 110. Qc1+ {[%emt 0:00:11]} Kb5 {[%emt 0:00:00]} 111. Kd6 {[%emt 0:00:10]} Kb4 {[%emt 0:00:01]} 112. Kd5 {[%emt 0:00:10]} Kb3 {[%emt 0:00:01]} 113. Kd4 {[%emt 0:00:28]} Kb4 114. Qb1+ {[%emt 0:00:35]} Ka5 {[%emt 0:00:01]} 115. Kc5 {[%emt 0:00:10]} Ka6 {[%emt 0:00:00]} 116. Qb6# {[%emt 0:00:09]} 1-0

[Event "DVM U10 2024"]
[Site "Duesseldorf"]
[Date "2024.12.29"]
[Round "7"]
[White "Dres, Friedrich"]
[Black "Rogozhin, Georg"]
[Result "1-0"]
[ECO "C54"]
[WhiteElo "1123"]
[BlackElo "1232"]
[Annotator "NA"]
[PlyCount "127"]
[EventDate "2024.12.23"]
[EventType "team-tourn"]
[EventRounds "7"]
[EventCountry "GER"]
[SourceTitle "playchess.com"]
[Source "ChessBase"]
[SourceQuality "1"]
[TimeControl "3300+5"]

1. e4 {[%emt 0:00:02]} e5 {[%emt 0:00:03]} 2. Nf3 {[%emt 0:00:05]} Nc6 {[%emt 0:00:06]} 3. Bc4 {[%emt 0:00:06]} Bc5 {[%emt 0:00:04]} 4. c3 {[%emt 0:00:06]} Nf6 {[%emt 0:00:05]} 5. d4 {[%emt 0:00:06]} exd4 {[%emt 0:00:06]} 6. e5 {[%emt 0:00:08]} Ne4 {[%emt 0:00:50]} 7. cxd4 {[%emt 0:00:08]} Bb4+ {[%emt 0:00:07]} 8. Nbd2 {[%emt 0:00:07]} d5 {[%emt 0:00:17]} 9. exd6 {[%emt 0:00:21]} cxd6 {[%emt 0:00:22]} 10. O-O {[%emt 0:00:10]} Nxd2 {[%emt 0:00:15]} 11. Bxd2 {[%emt 0:00:10]} Bxd2 {[%emt 0:00:05]} 12. Qxd2 {[%emt 0:00:09]} d5 {[%emt 0:00:08]} 13. Rfe1+ {[%emt 0:00:18]} Be6 {[%emt 0:00:12]} 14. Bb3 {[%emt 0:00:09]} O-O {[%emt 0:00:08]} 15. Rad1 {[%emt 0:00:42]} Re8 {[%emt 0:00:10]} 16. Ba4 {[%emt 0:00:13]} Qd6 {[%emt 0:00:26]} 17. Ne5 {[%emt 0:00:16]} a6 {[%emt 0:00:34]} 18. Rc1 {[%emt 0:00:31]} Rac8 {[%emt 0:01:25]} 19. Nxc6 {[%emt 0:01:16]} b5 {[%emt 0:00:19]} 20. Bb3 {[%emt 0:00:45]} Rxc6 {[%emt 0:00:08]} 21. Rxc6 {[%emt 0:00:43]} Qxc6 {[%emt 0:00:08]} 22. Rc1 {[%emt 0:01:10]} Qd6 {[%emt 0:00:27]} 23. a4 {[%emt 0:00:29]} b4 {[%emt 0:00:57]} 24. Rc5 {[%emt 0:00:38]} Rb8 {[%emt 0:03:05]} 25. Qg5 {[%emt 0:02:28]} h6 {[%emt 0:01:25]} 26. Qh5 {[%emt 0:00:23]} Rd8 {[%emt 0:02:36]} 27. Qe2 {[%emt 0:01:24]} Rc8 {[%emt 0:00:36]} 28. Qc2 {[%emt 0:00:43]} Rxc5 {[%emt 0:02:59]} 29. Qxc5 {[%emt 0:02:30]} Qxc5 {[%emt 0:01:44]} 30. dxc5 {[%emt 0:00:02]} Kf8 {[%emt 0:00:47]} 31. Kf1 {[%emt 0:00:14]} Ke7 {[%emt 0:00:07]} 32. a5 {[%emt 0:00:13]} Kd7 {[%emt 0:00:06]} 33. Ba4+ {[%emt 0:00:09]} Kc7 {[%emt 0:00:11]} 34. Ke2 {[%emt 0:00:07]} Bd7 {[%emt 0:00:08]} 35. Bxd7 {[%emt 0:00:11]} Kxd7 {[%emt 0:00:04]} 36. Kd3 {[%emt 0:00:12]} Kc6 {[%emt 0:00:12]} 37. Kd4 {[%emt 0:00:12]} f6 {[%emt 0:00:05]} 38. f4 {[%emt 0:00:32]} g6 {[%emt 0:00:07]} 39. g4 {[%emt 0:00:07]} g5 {[%emt 0:00:22]} 40. f5 {[%emt 0:00:10]} b3 {[%emt 0:00:06]} 41. h3 {[%emt 0:00:08]} Kc7 {[%emt 0:00:54]} 42. Kxd5 {[%emt 0:00:16]} Kd7 {[%emt 0:00:13]} 43. c6+ {[%emt 0:00:14]} Kc8 {[%emt 0:00:23]} 44. Ke6 {[%emt 0:00:13]} Kc7 {[%emt 0:00:06]} 45. Kxf6 {[%emt 0:00:09]} Kxc6 {[%emt 0:00:05]} 46. Ke6 {[%emt 0:00:02]} Kc5 {[%emt 0:00:09]} 47. f6 {[%emt 0:00:02]} Kd4 {[%emt 0:00:10]} 48. f7 {[%emt 0:00:09]} Kd3 {[%emt 0:00:05]} 49. f8=Q {[%emt 0:00:14]} Kc2 {[%emt 0:00:03]} 50. Qf6 {[%emt 0:00:07]} Kb1 {[%emt 0:00:08]} 51. Kd5 {[%emt 0:00:33]} Ka2 {[%emt 0:00:10]} 52. Kd4 {[%emt 0:00:16]} Kxb2 {[%emt 0:00:09]} 53. Qxh6 {[%emt 0:00:18]} Kc2 {[%emt 0:00:08]} 54. Qxg5 {[%emt 0:00:09]} b2 {[%emt 0:00:08]} 55. Qf5+ {[%emt 0:00:09]} Kc1 {[%emt 0:00:11]} 56. g5 {[%emt 0:00:06]} b1=Q 57. Qxb1+ {[%emt 0:00:08]} Kxb1 {[%emt 0:00:46]} 58. g6 {[%emt 0:00:01]} Kb2 {[%emt 0:00:47]} 59. g7 {[%emt 0:00:05]} Kb3 {[%emt 0:00:01]} 60. g8=Q+ {[%emt 0:00:05]} Kb4 61. Qd5 {[%emt 0:00:14]} Ka3 {[%emt 0:00:33]} 62. Qb7 {[%emt 0:00:04]} Ka4 {[%emt 0:00:09]} 63. Kc4 {[%emt 0:00:10]} Kxa5 {[%emt 0:00:06]} 64. Qb4# {[%emt 0:00:12]} 1-0

[Event "DVM U10 2024"]
[Site "Duesseldorf"]
[Date "2024.12.29"]
[Round "7"]
[White "Artarov, Rina"]
[Black "Busch, Jonathan Luis"]
[Result "0-1"]
[ECO "A45"]
[WhiteElo "1122"]
[BlackElo "1655"]
[Annotator "NA"]
[PlyCount "78"]
[EventDate "2024.12.23"]
[EventType "team-tourn"]
[EventRounds "7"]
[EventCountry "GER"]
[SourceTitle "playchess.com"]
[Source "ChessBase"]
[SourceQuality "1"]
[TimeControl "3300+5"]

1. d4 {[%emt 0:00:03]} Nf6 {[%emt 0:00:09]} 2. Bf4 {[%emt 0:00:05]} e6 {[%emt 0:00:28]} 3. Nc3 {[%emt 0:00:07]} c5 {[%emt 0:00:18]} 4. Nf3 {[%emt 0:00:51]} Nc6 {[%emt 0:01:10]} 5. Nb5 {[%emt 0:01:40]} Qa5+ {[%emt 0:00:23]} 6. Nc3 {[%emt 0:00:25]} cxd4 {[%emt 0:02:01]} 7. Nxd4 {[%emt 0:00:33]} Qb4 {[%emt 0:01:35]} 8. Qc1 {[%emt 0:01:20]} Nxd4 {[%emt 0:03:51]} 9. e3 {[%emt 0:00:16]} Nc6 {[%emt 0:04:31]} 10. Bd3 {[%emt 0:00:34]} a6 {[%emt 0:00:19]} 11. O-O {[%emt 0:00:09]} Be7 {[%emt 0:00:31]} 12. e4 {[%emt 0:02:03]} e5 {[%emt 0:00:36]} 13. Bd2 {[%emt 0:00:17]} Qd6 {[%emt 0:00:42]} 14. f4 {[%emt 0:01:20]} Qb8 {[%emt 0:01:46]} 15. fxe5 {[%emt 0:00:33]} Nxe5 {[%emt 0:00:14]} 16. Bf4 {[%emt 0:00:19]} d6 {[%emt 0:01:16]} 17. Be2 {[%emt 0:03:52]} Be6 {[%emt 0:00:56]} 18. Kh1 {[%emt 0:01:22]} O-O {[%emt 0:09:58]} 19. Qe1 {[%emt 0:09:08]} Ng6 {[%emt 0:00:00]} 20. Be3 {[%emt 0:01:06]} d5 {[%emt 0:00:00]} 21. exd5 {[%emt 0:10:21]} Nxd5 {[%emt 0:00:00]} 22. Bd4 {[%emt 0:06:03]} Qc7 {[%emt 0:01:21]} 23. Bd3 {[%emt 0:02:48]} Qd6 {[%emt 0:04:23]} 24. Rd1 {[%emt 0:03:03]} Rae8 {[%emt 0:00:52]} 25. Na4 {[%emt 0:01:14]} Qb4 {[%emt 0:01:21]} 26. Bxg6 {[%emt 0:00:53]} hxg6 {[%emt 0:01:24]} 27. Nc3 {[%emt 0:01:22]} Nxc3 {[%emt 0:00:49]} 28. Bxc3 {[%emt 0:00:27]} Qg4 {[%emt 0:00:55]} 29. Qe5 {[%emt 0:00:46]} Bf6 {[%emt 0:01:33]} 30. Qe3 {[%emt 0:00:57]} Bc4 {[%emt 0:01:42]} 31. Qf3 {[%emt 0:01:13]} Qxf3 {[%emt 0:01:05]} 32. Rxf3 {[%emt 0:00:01]} Be2 {[%emt 0:00:29]} 33. Rxf6 {[%emt 0:00:34]} Bxd1 {[%emt 0:00:59]} 34. Rf1 {[%emt 0:00:03]} Bxc2 {[%emt 0:00:15]} 35. Rc1 {[%emt 0:00:07]} Rd8 {[%emt 0:00:20]} 36. h3 {[%emt 0:00:34]} Rd1+ {[%emt 0:00:07]} 37. Rxd1 {[%emt 0:00:01]} Bxd1 {[%emt 0:00:10]} 38. Bb4 {[%emt 0:00:05]} Rc8 {[%emt 0:00:17]} 39. Bc5 {[%emt 0:00:11]} Rxc5 {[%emt 0:00:09]} 0-1

[Event "DVM U10 2024"]
[Site "Duesseldorf"]
[Date "2024.12.29"]
[Round "7"]
[White "Sander, Bela"]
[Black "von der Thüsen, Gottfried"]
[Result "0-1"]
[ECO "C50"]
[WhiteElo "1117"]
[BlackElo "1041"]
[Annotator "NA"]
[PlyCount "126"]
[EventDate "2024.12.23"]
[EventType "team-tourn"]
[EventRounds "7"]
[EventCountry "GER"]
[SourceTitle "playchess.com"]
[Source "ChessBase"]
[SourceQuality "1"]
[TimeControl "3300+5"]

1. e4 {[%emt 0:00:02]} e5 {[%emt 0:00:07]} 2. Nf3 {[%emt 0:00:06]} Nc6 {[%emt 0:00:31]} 3. Bc4 {[%emt 0:00:13]} Bc5 {[%emt 0:01:59]} 4. d3 {[%emt 0:00:19]} Nf6 {[%emt 0:00:39]} 5. Bg5 {[%emt 0:00:11]} d6 {[%emt 0:00:20]} 6. h3 {[%emt 0:00:11]} h6 {[%emt 0:00:12]} 7. Bh4 {[%emt 0:00:07]} Be6 {[%emt 0:00:18]} 8. Bxe6 {[%emt 0:00:17]} fxe6 {[%emt 0:00:15]} 9. Nc3 {[%emt 0:00:25]} d5 {[%emt 0:00:45]} 10. Bxf6 {[%emt 0:01:23]} gxf6 {[%emt 0:00:37]} 11. exd5 {[%emt 0:03:25]} exd5 {[%emt 0:00:15]} 12. O-O {[%emt 0:00:14]} Qd6 {[%emt 0:00:24]} 13. Qd2 {[%emt 0:02:16]} O-O-O {[%emt 0:00:30]} 14. Ne2 {[%emt 0:01:51]} Qe6 {[%emt 0:02:00]} 15. c3 {[%emt 0:03:16]} Rdg8 {[%emt 0:00:24]} 16. Kh2 {[%emt 0:03:18]} Rg6 {[%emt 0:00:29]} 17. g3 {[%emt 0:12:13]} h5 {[%emt 0:00:31]} 18. b4 {[%emt 0:01:58]} Bd6 {[%emt 0:01:49]} 19. Rg1 {[%emt 0:00:53]} e4 {[%emt 0:01:00]} 20. Nfd4 {[%emt 0:01:08]} Nxd4 {[%emt 0:00:17]} 21. Nxd4 {[%emt 0:00:08]} Qd7 {[%emt 0:00:25]} 22. dxe4 {[%emt 0:00:23]} Be5 {[%emt 0:00:26]} 23. exd5 {[%emt 0:00:59]} Qxd5 {[%emt 0:00:56]} 24. Rad1 {[%emt 0:00:59]} Bxd4 {[%emt 0:01:03]} 25. Qxd4 {[%emt 0:00:10]} Qxd4 {[%emt 0:00:20]} 26. Rxd4 {[%emt 0:00:08]} Rd8 {[%emt 0:00:16]} 27. Rxd8+ {[%emt 0:00:09]} Kxd8 {[%emt 0:00:11]} 28. Rd1+ {[%emt 0:00:12]} Ke7 {[%emt 0:00:18]} 29. Rd4 {[%emt 0:00:15]} Rg5 {[%emt 0:01:30]} 30. Kg2 {[%emt 0:00:19]} Rf5 {[%emt 0:00:22]} 31. g4 {[%emt 0:00:25]} hxg4 {[%emt 0:00:25]} 32. hxg4 {[%emt 0:00:07]} Rg5 {[%emt 0:00:19]} 33. Kg3 {[%emt 0:00:12]} Ke6 {[%emt 0:00:32]} 34. f4 {[%emt 0:00:11]} Rg7 {[%emt 0:01:08]} 35. Kh4 {[%emt 0:00:20]} Rh7+ {[%emt 0:01:11]} 36. Kg3 {[%emt 0:00:07]} Rg7 {[%emt 0:00:17]} 37. f5+ {[%emt 0:00:12]} Ke5 {[%emt 0:00:18]} 38. Kf3 {[%emt 0:00:11]} b5 {[%emt 0:00:37]} 39. Re4+ {[%emt 0:00:16]} Kd5 {[%emt 0:00:29]} 40. Kf4 {[%emt 0:00:19]} Rxg4+ {[%emt 0:00:35]} 41. Kxg4 {[%emt 0:00:15]} Kxe4 {[%emt 0:00:47]} 42. a3 {[%emt 0:00:08]} a6 {[%emt 0:00:11]} 43. Kg3 {[%emt 0:00:09]} Kxf5 {[%emt 0:00:18]} 44. Kf3 {[%emt 0:00:09]} c6 {[%emt 0:00:11]} 45. Ke3 {[%emt 0:00:06]} Ke5 {[%emt 0:00:20]} 46. Kf3 {[%emt 0:00:09]} Kd5 {[%emt 0:00:16]} 47. Ke3 {[%emt 0:00:10]} Kc4 {[%emt 0:00:20]} 48. Kd2 {[%emt 0:00:07]} f5 {[%emt 0:00:12]} 49. Kc2 {[%emt 0:00:09]} f4 {[%emt 0:00:12]} 50. Kd2 {[%emt 0:00:07]} f3 {[%emt 0:00:11]} 51. Ke3 {[%emt 0:00:07]} Kxc3 {[%emt 0:00:17]} 52. Kxf3 {[%emt 0:00:07]} Kb3 {[%emt 0:00:18]} 53. Ke4 {[%emt 0:00:07]} Kxa3 {[%emt 0:00:15]} 54. Kd4 {[%emt 0:00:08]} Kxb4 {[%emt 0:00:19]} 55. Kd3 {[%emt 0:00:03]} Kb3 {[%emt 0:00:17]} 56. Kd2 {[%emt 0:00:09]} Kb2 {[%emt 0:00:16]} 57. Kd3 {[%emt 0:00:06]} a5 {[%emt 0:00:24]} 58. Kd4 {[%emt 0:00:07]} a4 {[%emt 0:00:07]} 59. Kc5 {[%emt 0:00:06]} a3 {[%emt 0:00:09]} 60. Kb4 {[%emt 0:00:06]} a2 {[%emt 0:00:08]} 61. Kc5 {[%emt 0:00:10]} a1=Q {[%emt 0:00:20]} 62. Kb4 {[%emt 0:00:13]} Qc1 {[%emt 0:00:18]} 63. Ka5 {[%emt 0:00:08]} Qc5 {[%emt 0:00:18]} 0-1

[Event "DVM U10 2024"]
[Site "Duesseldorf"]
[Date "2024.12.29"]
[Round "7"]
[White "Naveen, Yuvaan"]
[Black "Satheesh, Dharshini"]
[Result "0-1"]
[ECO "D02"]
[WhiteElo "1110"]
[BlackElo "1643"]
[Annotator "NA"]
[PlyCount "76"]
[EventDate "2024.12.23"]
[EventType "team-tourn"]
[EventRounds "7"]
[EventCountry "GER"]
[SourceTitle "playchess.com"]
[Source "ChessBase"]
[SourceQuality "1"]
[TimeControl "3300+5"]

1. d4 {[%emt 0:00:02]} d5 {[%emt 0:00:11]} 2. Bf4 {[%emt 0:00:06]} Bf5 {[%emt 0:00:26]} 3. e3 {[%emt 0:00:19]} Nf6 {[%emt 0:00:41]} 4. c3 {[%emt 0:00:24]} e6 {[%emt 0:00:45]} 5. Nf3 {[%emt 0:00:30]} c5 {[%emt 0:02:29]} 6. Nbd2 {[%emt 0:01:03]} Be7 {[%emt 0:01:04]} 7. Ne5 {[%emt 0:01:25]} Nc6 {[%emt 0:02:18]} 8. Bb5 {[%emt 0:01:08]} Qb6 {[%emt 0:02:17]} 9. Qa4 {[%emt 0:01:21]} Rc8 {[%emt 0:03:31]} 10. Ndf3 {[%emt 0:02:11]} O-O {[%emt 0:00:48]} 11. Bxc6 {[%emt 0:01:18]} bxc6 {[%emt 0:02:43]} 12. Qb3 {[%emt 0:01:09]} Rfd8 {[%emt 0:06:14]} 13. Qxb6 {[%emt 0:00:28]} axb6 {[%emt 0:00:08]} 14. Bg5 {[%emt 0:01:03]} cxd4 {[%emt 0:01:29]} 15. exd4 {[%emt 0:00:29]} h6 {[%emt 0:01:01]} 16. Bxf6 {[%emt 0:00:26]} gxf6 {[%emt 0:00:48]} 17. g4 {[%emt 0:00:28]} Be4 {[%emt 0:01:50]} 18. Rg1 {[%emt 0:00:32]} fxe5 {[%emt 0:00:24]} 19. Nxe5 {[%emt 0:00:10]} f6 {[%emt 0:03:40]} 20. g5 {[%emt 0:00:28]} fxe5 {[%emt 0:01:26]} 21. gxh6+ {[%emt 0:00:11]} Kh8 {[%emt 0:03:43]} 22. Kd2 {[%emt 0:01:15]} Rg8 {[%emt 0:00:11]} 23. dxe5 {[%emt 0:01:21]} Bg5+ {[%emt 0:00:18]} 24. Ke2 {[%emt 0:00:27]} Bxh6 {[%emt 0:00:06]} 25. f3 {[%emt 0:00:46]} Rxg1 {[%emt 0:01:33]} 26. Rxg1 {[%emt 0:00:07]} Bf5 {[%emt 0:00:05]} 27. a4 {[%emt 0:01:07]} Rg8 {[%emt 0:00:33]} 28. Rxg8+ {[%emt 0:00:10]} Kxg8 {[%emt 0:00:04]} 29. b4 {[%emt 0:00:19]} Bf4 {[%emt 0:01:39]} 30. a5 {[%emt 0:00:10]} bxa5 {[%emt 0:00:11]} 31. bxa5 {[%emt 0:00:05]} Bxe5 {[%emt 0:00:03]} 32. a6 {[%emt 0:00:06]} Bb8 {[%emt 0:00:06]} 33. Ke3 {[%emt 0:00:19]} e5 {[%emt 0:00:30]} 34. h4 {[%emt 0:00:47]} Bc8 {[%emt 0:00:07]} 35. Kf2 {[%emt 0:00:17]} Bxa6 {[%emt 0:00:09]} 36. h5 {[%emt 0:00:20]} Ba7+ {[%emt 0:00:15]} 37. Ke1 {[%emt 0:00:07]} Kh7 {[%emt 0:00:10]} 38. Kd2 {[%emt 0:00:46]} Kh6 {[%emt 0:00:07]} 0-1

[Event "DVM U10 2024"]
[Site "Duesseldorf"]
[Date "2024.12.29"]
[Round "7"]
[White "Luible, Sebastian"]
[Black "Zielke, Mika"]
[Result "1/2-1/2"]
[ECO "D05"]
[WhiteElo "1104"]
[BlackElo "1623"]
[Annotator "NA"]
[PlyCount "103"]
[EventDate "2024.12.23"]
[EventType "team-tourn"]
[EventRounds "7"]
[EventCountry "GER"]
[SourceTitle "playchess.com"]
[Source "ChessBase"]
[SourceQuality "1"]
[TimeControl "3300+5"]

1. d4 {[%emt 0:00:06]} Nf6 {[%emt 0:00:08]} 2. Nf3 {[%emt 0:00:07]} d5 {[%emt 0:00:15]} 3. e3 {[%emt 0:00:05]} c5 {[%emt 0:00:54]} 4. Bd3 {[%emt 0:00:31]} Nc6 {[%emt 0:00:45]} 5. c3 {[%emt 0:00:27]} e6 {[%emt 0:00:33]} 6. Nbd2 {[%emt 0:00:54]} cxd4 {[%emt 0:00:51]} 7. cxd4 {[%emt 0:01:01]} Bd6 {[%emt 0:01:05]} 8. a3 {[%emt 0:01:26]} Bd7 {[%emt 0:00:39]} 9. Qe2 {[%emt 0:00:15]} O-O {[%emt 0:01:18]} 10. e4 {[%emt 0:02:05]} dxe4 {[%emt 0:04:35]} 11. Nxe4 {[%emt 0:00:10]} Nxe4 {[%emt 0:00:19]} 12. Qxe4 {[%emt 0:00:05]} f5 {[%emt 0:02:08]} 13. Qe2 {[%emt 0:02:41]} Qb6 {[%emt 0:03:42]} 14. Qe3 {[%emt 0:04:25]} Rae8 {[%emt 0:02:24]} 15. O-O {[%emt 0:01:31]} e5 {[%emt 0:01:28]} 16. Ng5 {[%emt 0:07:32]} Qxd4 {[%emt 0:05:10]} 17. Qxd4 {[%emt 0:01:03]} Nxd4 {[%emt 0:00:23]} 18. Be3 {[%emt 0:01:16]} h6 {[%emt 0:01:12]} 19. Bc4+ {[%emt 0:03:19]} Ne6 {[%emt 0:02:23]} 20. Rad1 {[%emt 0:05:48]} hxg5 {[%emt 0:01:30]} 21. Rxd6 {[%emt 0:00:32]} Bc8 {[%emt 0:01:10]} 22. Bxg5 {[%emt 0:03:09]} Kh7 {[%emt 0:04:05]} 23. Bxe6 {[%emt 0:02:04]} Rxe6 {[%emt 0:01:30]} 24. Rxe6 {[%emt 0:00:29]} Bxe6 {[%emt 0:00:10]} 25. Re1 {[%emt 0:00:13]} e4 {[%emt 0:00:30]} 26. f3 {[%emt 0:02:15]} Bd5 {[%emt 0:01:30]} 27. Kf2 {[%emt 0:02:41]} Rc8 {[%emt 0:01:22]} 28. Re2 {[%emt 0:01:51]} Kg6 {[%emt 0:01:01]} 29. fxe4 {[%emt 0:01:28]} Bxe4 {[%emt 0:00:19]} 30. h4 {[%emt 0:00:20]} Rc6 {[%emt 0:00:50]} 31. g3 {[%emt 0:00:32]} Rb6 {[%emt 0:00:56]} 32. Be3 {[%emt 0:00:21]} Rb3 {[%emt 0:01:33]} 33. Rd2 {[%emt 0:01:00]} a6 {[%emt 0:00:41]} 34. Re2 {[%emt 0:01:02]} Kh7 {[%emt 0:00:42]} 35. Rd2 {[%emt 0:00:05]} Kg6 {[%emt 0:01:09]} 36. Rd6+ {[%emt 0:00:35]} Kh7 {[%emt 0:00:20]} 37. Rd2 {[%emt 0:00:02]} Kg6 {[%emt 0:00:36]} 38. Bf4 {[%emt 0:00:13]} Rd3 {[%emt 0:00:44]} 39. Rxd3 {[%emt 0:00:11]} Bxd3 {[%emt 0:00:06]} 40. Ke3 {[%emt 0:00:01]} Be4 {[%emt 0:00:13]} 41. b4 {[%emt 0:00:13]} Kf7 {[%emt 0:00:15]} 42. Kd4 {[%emt 0:00:07]} g6 {[%emt 0:00:15]} 43. g4 {[%emt 0:00:38]} Ke6 {[%emt 0:00:38]} 44. h5 {[%emt 0:00:39]} Kf7 {[%emt 0:00:14]} 45. gxf5 {[%emt 0:00:36]} Bxf5 {[%emt 0:00:10]} 46. h6 {[%emt 0:00:02]} Kg8 {[%emt 0:00:16]} 47. Ke5 {[%emt 0:00:04]} Kh7 {[%emt 0:00:20]} 48. Kf6 {[%emt 0:00:19]} Be4 {[%emt 0:00:12]} 49. Kf7 {[%emt 0:00:12]} Bc6 {[%emt 0:00:09]} 50. Kf6 {[%emt 0:00:22]} Bd5 {[%emt 0:00:10]} 51. Ke5 {[%emt 0:00:04]} Bh1 {[%emt 0:00:16]} 52. Kf6 {[%emt 0:00:11]} 1/2-1/2